bitfinex-derivatives/quotes_BTCF0:USTF0_20241128
["timestamp","ask_amount","ask_price","bid_price","bid_amount"]
[1732796141987,0.40002703,95619.0,95618.0,0.052273]
[1732796142182,0.248732,95619.0,95618.0,0.052273]
[1732796142383,0.40520026,95619.0,95618.0,0.052273]
[1732796142584,0.248732,95619.0,95618.0,0.052273]
[1732796142779,0.248732,95619.0,95618.0,0.053273]
[1732796142780,0.249732,95619.0,95618.0,0.053273]
[1732796142990,0.249732,95619.0,95618.0,0.001]
[1732796143379,0.251732,95619.0,95618.0,0.001]
[1732796143783,0.612532,95619.0,95618.0,0.001]
[1732796144093,0.612532,95619.0,95605.0,0.05228]
[1732796144094,0.052279,95606.0,95605.0,0.05228]
[1732796144393,0.21970824,95606.0,95605.0,0.0620877]
[1732796144590,0.21970824,95606.0,95605.0,0.0098077]
[1732796144988,0.21970824,95606.0,95596.0,0.43213754]
[1732796144989,0.052281,95603.0,95597.0,0.052284]
[1732796145186,0.06075078,95603.0,95597.0,0.052284]
[1732796145381,0.06075078,95603.0,95598.0,0.052283]
[1732796145590,0.06075078,95603.0,95601.0,0.05240846]
[1732796146187,0.06075078,95603.0,95601.0,0.00012646]
[1732796146493,0.06075078,95603.0,95602.0,0.413081]
[1732796147292,0.082781,95603.0,95602.0,0.413081]
[1732796147491,0.082781,95603.0,95602.0,0.415081]
[1732796147681,0.082781,95603.0,95602.0,0.3628]
[1732796148087,0.0365,95603.0,95602.0,0.001]
[1732796148291,0.090781,95603.0,95602.0,0.001]
[1732796149197,0.24726675,95603.0,95602.0,0.001]
[1732796149395,0.249741,95603.0,95602.0,0.052281]
[1732796149597,0.249741,95603.0,95602.0,0.053281]
[1732796149793,0.37489906,95603.0,95602.0,0.053281]
[1732796149990,0.37289906,95603.0,95602.0,0.053281]
[1732796150196,0.247741,95603.0,95602.0,0.053281]
[1732796150488,0.37289907,95603.0,95602.0,0.053281]
[1732796150684,0.247741,95603.0,95602.0,0.053281]
[1732796150888,0.250741,95603.0,95602.0,0.053281]
[1732796151483,0.0395,95603.0,95602.0,0.053281]
[1732796151797,0.19246,95603.0,95602.0,0.052281]
[1732796152095,0.20146,95603.0,95602.0,0.053281]
[1732796152297,0.012,95603.0,95602.0,0.053281]
[1732796152483,0.003,95603.0,95602.0,0.398081]
[1732796152688,0.15896,95618.0,95617.0,0.052273]
[1732796152887,0.15896,95618.0,95617.0,0.413073]
[1732796153094,0.211233,95618.0,95617.0,0.052273]
[1732796153489,0.15896,95618.0,95617.0,0.052273]
[1732796153789,0.0325,95619.0,95617.0,0.052273]
[1732796153996,0.0325,95619.0,95616.0,0.37677517]
[1732796153997,9.825e-05,95623.0,95622.0,0.05227]
[1732796155187,0.00209825,95623.0,95622.0,0.05227]
[1732796155500,0.00609825,95623.0,95622.0,0.05227]
[1732796161797,0.00609825,95623.0,95622.0,0.41307]
[1732796163598,0.00609825,95623.0,95622.0,0.4228749]
[1732796164913,0.00609825,95623.0,95622.0,0.41307]
[1732796165094,0.05836825,95623.0,95622.0,0.41307]
[1732796165301,0.05836825,95623.0,95622.0,0.3608]
[1732796165497,0.05836825,95623.0,95616.0,0.01597517]
[1732796165498,0.052273,95617.0,95616.0,0.01597517]
[1732796165807,0.052275,95614.0,95613.0,0.3608]
[1732796166393,0.082675,95614.0,95613.0,0.413075]
[1732796166598,0.15856,95615.0,95614.0,0.052275]
[1732796167900,0.15856,95615.0,95614.0,0.053275]
[1732796168200,0.210834,95615.0,95614.0,0.053275]
[1732796168605,0.210834,95615.0,95614.0,0.052275]
[1732796168804,0.210834,95615.0,95614.0,0.053275]
[1732796169108,0.211834,95615.0,95614.0,0.053275]
[1732796169610,0.210834,95615.0,95614.0,0.053275]
[1732796170208,0.210834,95615.0,95614.0,0.001]
[1732796170406,0.210834,95615.0,95591.0,0.114687]
[1732796170407,0.052275,95614.0,95593.0,0.18699407]
[1732796170609,0.052281,95602.0,95601.0,0.0681504]
[1732796170907,0.210841,95602.0,95601.0,0.0681504]
[1732796171101,0.210841,95602.0,95601.0,0.05240746]
[1732796173006,0.15856,95602.0,95601.0,0.05240746]
[1732796173400,0.16356,95602.0,95601.0,0.05340746]
[1732796174000,0.16456,95602.0,95601.0,0.05340746]
[1732796174200,0.216841,95602.0,95601.0,0.05340746]
[1732796174607,0.217841,95602.0,95601.0,0.05340746]
[1732796175603,0.215841,95602.0,95601.0,0.00112646]
[1732796175810,0.217841,95602.0,95601.0,0.00112646]
[1732796176209,0.217841,95602.0,95601.0,0.00012646]
[1732796176210,0.212841,95602.0,95601.0,0.00012646]
[1732796176508,0.218841,95602.0,95601.0,0.00112646]
[1732796176902,0.217841,95602.0,95601.0,0.00112646]
[1732796177311,0.215841,95602.0,95601.0,0.05340846]
[1732796177611,0.218841,95602.0,95601.0,0.00112646]
[1732796178704,0.34388206,95602.0,95601.0,0.00112646]
[1732796178903,0.218841,95602.0,95601.0,0.00112646]
[1732796179228,0.23413669,95602.0,95601.0,0.00112646]
[1732796179405,0.35917775,95602.0,95601.0,0.00112646]
[1732796179602,0.39087775,95602.0,95601.0,0.00112646]
[1732796180502,0.26583669,95602.0,95601.0,0.00112646]
[1732796181504,0.26583669,95602.0,95601.0,0.05340846]
[1732796181505,0.250541,95602.0,95601.0,0.05340846]
[1732796183311,0.218841,95602.0,95601.0,0.05340846]
[1732796184512,0.218881,95602.0,95601.0,0.05340846]
[1732796185614,0.008,95602.0,95601.0,0.05340846]
[1732796185817,0.1666,95602.0,95601.0,0.05340846]
[1732796186114,0.008,95602.0,95601.0,0.05340846]
[1732796187018,0.060281,95602.0,95601.0,0.05340846]
[1732796187608,0.060281,95602.0,95601.0,0.00112646]
[1732796188511,0.092681,95602.0,95601.0,0.00112646]
[1732796189514,0.10805543,95602.0,95601.0,0.00112646]
[1732796191423,0.26454107,95602.0,95601.0,0.00112646]
[1732796191612,0.10805543,95602.0,95601.0,0.00112646]
[1732796192122,0.26454107,95602.0,95601.0,0.00112646]
[1732796193110,0.10805543,95602.0,95601.0,0.00112646]
[1732796193610,0.26446054,95602.0,95601.0,0.00112646]
[1732796194217,0.10805543,95602.0,95601.0,0.00112646]
[1732796194719,0.052288,95593.0,95592.0,0.052286]
[1732796194912,0.210568,95593.0,95592.0,0.052286]
[1732796195320,0.05229,95589.0,95588.0,0.052289]
[1732796197123,0.15928,95593.0,95592.0,0.052287]
[1732796197124,0.001,95593.0,95592.0,0.052287]
[1732796197320,0.15828,95593.0,95588.0,0.053289]
[1732796197525,0.15828,95593.0,95592.0,0.052287]
[1732796198223,0.210566,95593.0,95592.0,0.052287]
[1732796198615,0.052288,95589.0,95588.0,0.054288]
[1732796199316,0.052288,95589.0,95588.0,0.052288]
[1732796199515,0.052288,95589.0,95588.0,0.053288]
[1732796199922,0.052288,95589.0,95588.0,0.001]
[1732796200122,0.17755826,95589.0,95588.0,0.001]
[1732796200324,0.1776621,95589.0,95588.0,0.001]
[1732796200520,0.052288,95589.0,95588.0,0.001]
[1732796201124,0.052288,95589.0,95588.0,0.002]
[1732796201629,0.20879923,95589.0,95588.0,0.002]
[1732796201923,0.052288,95589.0,95588.0,0.002]
[1732796202121,0.20898541,95589.0,95588.0,0.002]
[1732796202327,0.052288,95589.0,95573.0,0.18542516]
[1732796202515,0.052288,95589.0,95562.0,0.3608]
[1732796202516,0.052297,95573.0,95562.0,0.00156]
[1732796202719,0.052297,95573.0,95555.0,0.3608]
[1732796202720,0.052303,95563.0,95555.0,0.3608]
[1732796202919,0.12538838,95557.0,95545.0,0.052312]
[1732796203122,0.052312,95546.0,95545.0,0.052312]
[1732796203425,0.210592,95546.0,95545.0,0.06768225]
[1732796204122,0.210592,95546.0,95545.0,0.07749634]
[1732796204528,0.211592,95546.0,95545.0,0.08649634]
[1732796205320,0.211592,95546.0,95545.0,0.01889179]
[1732796205725,0.212592,95546.0,95545.0,0.02689179]
[1732796207333,0.212592,95546.0,95545.0,0.0170777]
[1732796207529,0.211592,95546.0,95545.0,0.0080777]
[1732796207729,0.212592,95546.0,95545.0,0.0150777]
[1732796210632,0.211592,95546.0,95545.0,0.0080777]
[1732796210835,0.212592,95546.0,95545.0,0.0140777]
[1732796213539,0.212592,95546.0,95532.0,0.0301]
[1732796213737,0.052319,95533.0,95521.0,0.01701007]
[1732796214034,0.413115,95540.0,95524.0,0.052324]
[1732796214035,0.052322,95527.0,95524.0,0.052324]
[1732796214235,0.210682,95527.0,95524.0,0.052324]
[1732796214432,0.210682,95527.0,95521.0,0.01701007]
[1732796214731,0.052325,95523.0,95521.0,0.01701007]
[1732796214931,0.15836,95527.0,95526.0,0.004]
[1732796215235,0.210682,95527.0,95526.0,0.004]
[1732796215426,0.15836,95527.0,95521.0,0.01701007]
[1732796215627,0.052325,95522.0,95521.0,0.01701007]
[1732796217040,0.052325,95522.0,95521.0,0.06933607]
[1732796217534,0.052325,95522.0,95521.0,0.02301007]
[1732796217731,0.053325,95522.0,95521.0,0.02301007]
[1732796217936,0.054325,95522.0,95521.0,0.02301007]
[1732796221641,0.054325,95522.0,95521.0,0.07533607]
[1732796222136,0.002,95522.0,95521.0,0.07533607]
[1732796222837,0.16008,95522.0,95521.0,0.07533607]
[1732796223238,0.002,95522.0,95521.0,0.07533607]
[1732796223436,0.16008,95522.0,95521.0,0.07533607]
[1732796223636,0.002,95522.0,95521.0,0.07533607]
[1732796223835,0.3608,95551.0,95521.0,0.63709007]
[1732796224035,0.12538838,95569.0,95521.0,0.63709007]
[1732796224036,0.052311,95549.0,95546.0,0.052312]
[1732796224235,0.12608264,95560.0,95546.0,0.052312]
[1732796224236,0.15808,95552.0,95546.0,0.052312]
[1732796224638,0.052311,95548.0,95546.0,0.052312]
[1732796224947,0.052309,95551.0,95546.0,0.052312]
[1732796225240,0.00108011,95547.0,95546.0,0.052312]
[1732796226337,0.00208011,95547.0,95546.0,0.052312]
[1732796226636,0.00208011,95547.0,95546.0,0.06819718]
[1732796226835,0.00308011,95547.0,95546.0,0.06819718]
[1732796227143,0.00208011,95547.0,95546.0,0.06819718]
[1732796227336,8.011e-05,95547.0,95546.0,0.06819718]
[1732796227542,8.011e-05,95547.0,95546.0,0.06919718]
[1732796228035,0.00108011,95547.0,95546.0,0.06819718]
[1732796228841,0.00108011,95547.0,95546.0,0.06919718]
[1732796229248,0.05231,95550.0,95549.0,0.052309]
[1732796230549,0.05331,95550.0,95549.0,0.052309]
[1732796231047,0.052313,95545.0,95532.0,0.36244]
[1732796231351,0.052313,95545.0,95544.0,0.052312]
[1732796231642,0.052313,95545.0,95544.0,0.06539709]
[1732796232240,0.053313,95545.0,95544.0,0.06539709]
[1732796233244,0.053313,95545.0,95544.0,0.01308509]
[1732796233456,0.053313,95545.0,95532.0,0.3618]
[1732796233457,0.315,95545.0,95532.0,0.001]
[1732796233742,0.413119,95533.0,95532.0,0.001]
[1732796233947,0.571199,95533.0,95532.0,0.00057536]
[1732796234149,0.052325,95522.0,95521.0,0.0015702]
[1732796234444,0.210405,95522.0,95521.0,0.01138621]
[1732796234647,0.210405,95522.0,95521.0,0.0015702]
[1732796235448,0.210405,95522.0,95521.0,0.0025702]
[1732796235647,0.211405,95522.0,95521.0,0.0025702]
[1732796235852,0.052333,95510.0,95500.0,0.1]
[1732796236150,0.052334,95507.0,95506.0,0.052334]
[1732796236348,0.15808,95507.0,95506.0,0.06215139]
[1732796238049,0.15908,95507.0,95506.0,0.07015139]
[1732796238552,0.16008,95507.0,95506.0,0.07015139]
[1732796238751,0.16008,95507.0,95506.0,0.01781739]
[1732796239052,0.16008,95507.0,95506.0,0.008]
[1732796240048,0.052336,95502.0,95501.0,9.498e-05]
[1732796241053,0.413136,95502.0,95501.0,9.498e-05]
[1732796241250,0.413136,95502.0,95501.0,0.00609498]
[1732796241251,0.414136,95502.0,95501.0,0.00609498]
[1732796241747,0.415136,95502.0,95501.0,0.00609498]
[1732796241949,0.573256,95502.0,95501.0,0.00609498]
[1732796242743,0.52092,95502.0,95482.0,0.052347]
[1732796242958,0.52092,95502.0,95483.0,0.00981975]
[1732796242959,0.052346,95484.0,95483.0,0.00981975]
[1732796243258,0.210466,95484.0,95483.0,0.00981975]
[1732796243443,0.210466,95484.0,95482.0,0.052347]
[1732796243645,0.210466,95484.0,95483.0,9.356e-05]
[1732796243843,0.21059408,95484.0,95483.0,9.356e-05]
[1732796244155,0.15924808,95484.0,95483.0,0.01591366]
[1732796244563,0.21259408,95484.0,95483.0,0.01591366]
[1732796244950,0.21259408,95484.0,95483.0,0.06826066]
[1732796245256,0.21259408,95484.0,95483.0,0.05844056]
[1732796245449,0.21259408,95484.0,95483.0,0.00609356]
[1732796245851,0.21259408,95484.0,95483.0,0.05344056]
[1732796246157,0.16024808,95484.0,95483.0,0.05344056]
[1732796250164,0.00212808,95484.0,95483.0,0.05344056]
[1732796250367,0.00212808,95484.0,95483.0,0.06653422]
[1732796254260,0.3608,95489.0,95488.0,0.052344]
[1732796254464,0.3608,95489.0,95488.0,0.0556175]
[1732796255166,0.3608,95489.0,95488.0,0.0654375]
[1732796255469,0.36090594,95489.0,95488.0,0.0654375]
[1732796255963,0.36290594,95489.0,95488.0,0.0674375]
[1732796256659,0.36290594,95489.0,95488.0,0.064164]
[1732796256864,0.36290594,95489.0,95488.0,0.06743733]
[1732796258560,0.36290594,95489.0,95488.0,0.05761733]
[1732796261564,0.41524894,95489.0,95488.0,0.05761733]
[1732796261867,0.41524894,95489.0,95488.0,0.002]
[1732796262366,0.57312894,95489.0,95488.0,0.002]
[1732796264863,0.58882599,95489.0,95488.0,0.002]
[1732796267157,0.55561626,95489.0,95488.0,0.002]
[1732796267366,0.71349626,95489.0,95488.0,0.002]
[1732796267867,0.58882599,95489.0,95488.0,0.054344]
[1732796268060,0.71349626,95489.0,95488.0,0.054344]
[1732796268256,0.35269626,95489.0,95488.0,0.054344]
[1732796268469,0.71349626,95489.0,95488.0,0.054344]
[1732796268964,0.58882599,95489.0,95488.0,0.054344]
[1732796271469,0.58882599,95489.0,95488.0,0.002]
[1732796272367,0.83648299,95489.0,95463.0,0.37065954]
[1732796272569,0.83648299,95489.0,95470.0,0.052354]
[1732796272570,0.413153,95471.0,95470.0,0.052354]
[1732796272767,0.413153,95471.0,95456.0,0.052361]
[1732796272768,0.51868,95471.0,95469.0,0.052354]
[1732796272967,0.0318,95470.0,95452.0,0.052363]
[1732796273167,0.052354,95469.0,95466.0,0.052356]
[1732796273466,0.17786215,95469.0,95467.0,0.052355]
[1732796274064,0.052354,95469.0,95468.0,0.05392605]
[1732796274375,0.0318,95470.0,95469.0,0.052354]
[1732796274558,0.084154,95470.0,95469.0,0.052354]
[1732796275670,0.117354,95470.0,95469.0,0.052354]
[1732796275878,0.149154,95470.0,95469.0,0.052354]
[1732796276368,0.150154,95470.0,95469.0,0.052354]
[1732796276572,0.24420101,95470.0,95469.0,0.052354]
[1732796277069,0.150154,95470.0,95469.0,0.052354]
[1732796277962,0.15988,95470.0,95469.0,0.052354]
[1732796278673,0.17531599,95470.0,95469.0,0.052354]
[1732796279064,0.17431599,95470.0,95469.0,0.052354]
[1732796279576,0.17531599,95470.0,95469.0,0.052354]
[1732796280369,0.22766999,95470.0,95469.0,0.052354]
[1732796280773,0.17535599,95470.0,95469.0,0.052354]
[1732796281573,0.17535599,95470.0,95469.0,0.06156383]
[1732796281764,0.01743599,95470.0,95469.0,0.06156383]
[1732796281969,0.12550815,95486.0,95469.0,0.4208225]
[1732796282180,0.01572738,95494.0,95469.0,0.4208225]
[1732796282181,0.12550815,95494.0,95488.0,0.052344]
[1732796282363,0.3608,95501.0,95488.0,0.052344]
[1732796282364,0.12550815,95498.0,95497.0,0.052339]
[1732796282579,0.12550815,95498.0,95497.0,0.052763]
[1732796282777,0.15695382,95510.0,95509.0,0.052332]
[1732796282778,0.12550815,95510.0,95509.0,0.052332]
[1732796282971,0.12550815,95510.0,95501.0,0.052337]
[1732796282972,0.052336,95504.0,95501.0,0.052337]
[1732796283175,0.64390815,95510.0,95497.0,0.000424]
[1732796283375,0.64390815,95510.0,95488.0,0.01076411]
[1732796283376,0.052343,95489.0,95488.0,0.01076411]
[1732796283688,0.209943,95489.0,95488.0,0.00920411]
[1732796283877,0.3608,95492.0,95491.0,0.052342]
[1732796284176,0.1576,95499.0,95498.0,0.052338]
[1732796284482,0.00010693,95500.0,95498.0,0.07134252]
[1732796284670,0.00010693,95500.0,95499.0,0.01900452]
[1732796285472,0.00010693,95500.0,95499.0,0.05210452]
[1732796285768,0.00110693,95500.0,95499.0,0.05210452]
[1732796286382,0.00110693,95500.0,95499.0,0.05410452]
[1732796286674,0.36190693,95500.0,95499.0,0.04691852]
[1732796286874,0.51950693,95500.0,95499.0,0.089438]
[1732796287776,0.57184393,95500.0,95499.0,0.004]
[1732796288078,0.50820899,95500.0,95499.0,0.056338]
[1732796288269,0.57184393,95500.0,95499.0,0.056338]
[1732796288471,0.69735208,95500.0,95499.0,0.004]
[1732796289166,0.57184393,95500.0,95499.0,0.004]
[1732796291874,0.58716856,95500.0,95499.0,0.004]
[1732796292074,0.42956856,95500.0,95499.0,0.004]
[1732796292270,0.51946693,95500.0,95499.0,0.056338]
[1732796292672,0.61334729,95500.0,95499.0,0.056338]
[1732796292873,0.51946693,95500.0,95499.0,0.056338]
[1732796293172,0.41424393,95500.0,95499.0,0.056338]
[1732796293377,0.57180393,95500.0,95499.0,0.056338]
[1732796293574,0.57180393,95500.0,95499.0,0.004]
[1732796293982,0.57180393,95500.0,95499.0,0.056338]
[1732796294184,0.41424393,95500.0,95499.0,0.056338]
[1732796294380,0.57180393,95500.0,95499.0,0.056338]
[1732796294780,0.41424393,95500.0,95499.0,0.056338]
[1732796294984,0.57180393,95500.0,95499.0,0.056338]
[1732796295375,0.57180393,95500.0,95499.0,0.004]
[1732796296086,0.66568193,95500.0,95499.0,0.004]
[1732796296482,0.57180393,95500.0,95499.0,0.004]
[1732796298375,0.51946693,95500.0,95499.0,0.056338]
[1732796298580,0.36190693,95500.0,95499.0,0.056338]
[1732796298779,0.00110693,95500.0,95499.0,0.06615665]
[1732796299487,0.00110693,95500.0,95499.0,0.056338]
[1732796302290,0.00110693,95500.0,95499.0,0.07173498]
[1732796304387,0.00110693,95500.0,95499.0,0.08155349]
[1732796306284,0.15866693,95500.0,95499.0,0.08155349]
[1732796306683,0.00110693,95500.0,95499.0,0.07173498]
[1732796306985,0.15866693,95500.0,95499.0,0.07173498]
[1732796307583,0.00110693,95500.0,95499.0,0.07173498]
[1732796307785,0.25252641,95500.0,95499.0,0.07173498]
[1732796308185,0.15866693,95500.0,95499.0,0.07173498]
[1732796309299,0.15866693,95500.0,95499.0,0.08155352]
[1732796311390,0.15866693,95500.0,95499.0,0.09068791]
[1732796313189,0.15866693,95500.0,95499.0,0.08155352]
[1732796313398,0.15866693,95500.0,95499.0,0.09071023]
[1732796315397,0.15866693,95500.0,95499.0,0.08089169]
[1732796315802,0.21100393,95500.0,95499.0,0.06615655]
[1732796316296,0.24410393,95500.0,95499.0,0.06615655]
[1732796316798,0.19148693,95500.0,95499.0,0.06615655]
[1732796317796,0.24382393,95500.0,95499.0,0.06615655]
[1732796318694,0.24382393,95500.0,95499.0,0.056338]
[1732796320593,0.24382393,95500.0,95499.0,0.06615681]
[1732796321295,0.24382393,95500.0,95499.0,0.056338]
[1732796321804,0.24382393,95500.0,95499.0,0.06615679]
[1732796322203,0.24382393,95500.0,95499.0,0.056338]
[1732796322704,0.24382393,95500.0,95499.0,0.06615677]
[1732796323089,0.24382393,95500.0,95499.0,0.056338]
[1732796324006,0.24382393,95500.0,95499.0,0.0661568]
[1732796324202,0.24382393,95500.0,95499.0,0.056338]
[1732796324496,0.24382393,95500.0,95499.0,0.06615679]
[1732796324497,0.19148693,95500.0,95499.0,0.06615679]
[1732796324700,0.15838693,95500.0,95499.0,0.07541905]
[1732796324901,0.28390508,95500.0,95499.0,0.07541905]
[1732796325301,0.15838693,95500.0,95499.0,0.07541905]
[1732796325800,0.28279815,95502.0,95501.0,0.052337]
[1732796326007,0.15728,95502.0,95501.0,0.07141805]
[1732796326506,0.15695382,95506.0,95501.0,0.01908105]
[1732796326702,0.15695382,95506.0,95500.0,0.052337]
[1732796326703,0.15728,95505.0,95502.0,0.01912759]
[1732796326906,0.15728,95505.0,95504.0,0.052335]
[1732796327103,0.31423382,95505.0,95504.0,0.07146259]
[1732796327906,0.15728,95505.0,95504.0,0.07146259]
[1732796328205,0.31426698,95505.0,95504.0,0.07146259]
[1732796329027,0.15798698,95505.0,95504.0,0.08841829]
[1732796329199,0.001,95505.0,95504.0,0.40253829]
[1732796329401,0.12558089,95507.0,95505.0,0.31412]
[1732796329699,0.12558089,95507.0,95506.0,0.4373985]
[1732796329905,0.15885097,95527.0,95509.0,0.052332]
[1732796329906,0.09417279,95510.0,95509.0,0.052332]
[1732796330108,0.09417279,95512.0,95511.0,0.052331]
[1732796330399,0.00012821,95512.0,95511.0,0.08691883]
[1732796330807,0.05245921,95512.0,95511.0,0.08691883]
[1732796331493,0.41325921,95512.0,95511.0,0.01941056]
[1732796331697,0.41325921,95512.0,95506.0,0.002]
[1732796331698,0.36092821,95512.0,95506.0,0.002]
[1732796331898,0.1568735,95510.0,95493.0,0.24791918]
[1732796332102,0.052332,95510.0,95509.0,0.052332]
[1732796332303,0.15728,95510.0,95509.0,0.052332]
[1732796333109,0.15828,95510.0,95509.0,0.052332]
[1732796333504,0.001,95510.0,95509.0,0.052332]
[1732796333705,0.15828,95510.0,95509.0,0.052332]
[1732796334506,0.15828,95510.0,95509.0,0.053332]
[1732796334707,0.15828,95510.0,95509.0,0.055332]
[1732796334708,0.15728,95510.0,95509.0,0.055332]
[1732796335708,0.052331,95511.0,95510.0,0.052332]
[1732796336011,0.209611,95511.0,95510.0,0.052332]
[1732796336710,0.052332,95510.0,95509.0,0.003]
[1732796337003,0.052332,95510.0,95509.0,0.055332]
[1732796337213,0.052332,95510.0,95509.0,0.003]
[1732796337600,0.052332,95510.0,95509.0,0.002]
[1732796337801,0.209611,95511.0,95510.0,0.002]
[1732796338198,0.26051348,95511.0,95510.0,0.002]
[1732796338409,0.052332,95510.0,95509.0,0.055332]
[1732796338602,0.10323448,95510.0,95509.0,0.055332]
[1732796338811,0.2914772,95510.0,95509.0,0.055332]
[1732796339011,0.2914772,95510.0,95509.0,0.053332]
[1732796339207,0.2914772,95510.0,95509.0,0.052332]
[1732796339208,0.10323448,95510.0,95509.0,0.052332]
[1732796339423,0.29147798,95510.0,95509.0,0.052332]
[1732796339910,0.10323448,95510.0,95509.0,0.052332]
[1732796340097,0.29147402,95510.0,95509.0,0.052332]
[1732796340611,0.44875402,95510.0,95509.0,0.052332]
[1732796340908,0.44875402,95510.0,95509.0,0.054332]
[1732796340909,0.26051448,95510.0,95509.0,0.054332]
[1732796341109,0.44875351,95510.0,95509.0,0.054332]
[1732796341313,0.26051448,95510.0,95509.0,0.054332]
[1732796341505,0.26051448,95510.0,95509.0,0.055332]
[1732796343007,0.26051463,95510.0,95509.0,0.003]
[1732796343616,0.26051463,95510.0,95509.0,0.01252745]
[1732796344123,0.26051463,95510.0,95509.0,0.06485945]
[1732796344415,0.44875383,95510.0,95509.0,0.055332]
[1732796344810,0.26051463,95510.0,95509.0,0.01292393]
[1732796345914,0.26051463,95510.0,95509.0,0.02290389]
[1732796346314,0.209612,95510.0,95509.0,0.02290389]
[1732796346714,0.36647808,95510.0,95509.0,0.01297996]
[1732796347110,0.209612,95510.0,95509.0,0.01297996]
[1732796347314,0.15728,95510.0,95509.0,0.06531196]
[1732796347712,0.209612,95510.0,95509.0,0.06531196]
[1732796347917,0.209292,95510.0,95509.0,0.06531196]
[1732796348311,0.209292,95510.0,95509.0,0.01297996]
[1732796348510,0.36615808,95510.0,95509.0,0.01297996]
[1732796349107,0.20919808,95510.0,95509.0,0.01297996]
[1732796349307,0.36615808,95510.0,95509.0,0.01297996]
[1732796350015,0.36615808,95510.0,95509.0,0.06531196]
[1732796350016,0.15696,95510.0,95509.0,0.06531196]
[1732796350618,0.15686608,95511.0,95510.0,0.052332]
[1732796350820,0.00012821,95512.0,95511.0,0.052331]
[1732796351009,0.15686608,95520.0,95511.0,0.32549647]
[1732796351010,0.12549757,95520.0,95511.0,0.32549647]
[1732796351209,0.12549757,95523.0,95517.0,0.3608]
[1732796351525,0.12549757,95526.0,95525.0,0.052324]
[1732796351720,0.12549757,95526.0,95525.0,0.0683727]
[1732796352115,0.12549757,95526.0,95525.0,0.07835266]
[1732796352320,0.12549757,95527.0,95526.0,0.052323]
[1732796352518,0.12549757,95527.0,95526.0,0.07853086]
[1732796353323,0.12549757,95528.0,95526.0,0.02620786]
[1732796353517,0.12549757,95528.0,95527.0,0.052322]
[1732796353714,0.12549757,95528.0,95527.0,0.06240171]
[1732796353919,0.12549757,95529.0,95528.0,0.052322]
[1732796354119,0.12549757,95529.0,95528.0,0.06240171]
[1732796354315,0.3608,95530.0,95529.0,0.052321]
[1732796354530,0.3608,95530.0,95529.0,0.06240071]
[1732796354828,0.3608,95530.0,95529.0,0.07865001]
[1732796354829,0.51749033,95530.0,95529.0,0.07865001]
[1732796355028,0.3608,95530.0,95529.0,0.07548824]
[1732796355528,0.3608,95530.0,95529.0,0.07648824]
[1732796355729,0.3608,95530.0,95529.0,0.06513665]
[1732796356033,0.3608,95530.0,95529.0,0.07526551]
[1732796356227,0.3608,95530.0,95529.0,0.06513665]
[1732796356417,7.625e-05,95531.0,95529.0,0.01281565]
[1732796356622,0.12527861,95530.0,95529.0,0.055321]
[1732796356818,0.12527861,95530.0,95529.0,0.09163777]
[1732796357126,7.625e-05,95531.0,95529.0,0.12323268]
[1732796357331,7.625e-05,95531.0,95530.0,0.22523677]
[1732796357626,7.625e-05,95531.0,95530.0,0.24157092]
[1732796358025,7.625e-05,95531.0,95530.0,0.55561092]
[1732796358619,7.625e-05,95531.0,95530.0,0.54025255]
[1732796358927,7.625e-05,95531.0,95530.0,0.55533781]
[1732796359128,7.625e-05,95531.0,95530.0,0.59751539]
[1732796359327,7.625e-05,95531.0,95530.0,0.59734899]
[1732796359719,7.625e-05,95531.0,95530.0,0.10776477]
[1732796359925,7.625e-05,95531.0,95530.0,0.0979498]
[1732796360227,7.625e-05,95531.0,95530.0,0.08278205]
[1732796360627,0.00107625,95531.0,95530.0,0.08478205]
[1732796361024,0.00107625,95531.0,95530.0,0.07169678]
[1732796361336,0.00107625,95531.0,95530.0,0.006]
[1732796361529,0.31554026,95531.0,95508.0,0.36091936]
[1732796361830,0.413126,95520.0,95515.0,0.052329]
[1732796362020,0.052327,95519.0,95516.0,0.01344163]
[1732796362225,0.052327,95519.0,95508.0,0.01497344]
[1732796362226,0.052328,95518.0,95517.0,0.01016945]
[1732796362633,0.052328,95518.0,95508.0,0.01497344]
[1732796362634,0.51772,95520.0,95508.0,0.00011936]
[1732796362824,0.052332,95509.0,95508.0,0.00011936]
[1732796363024,0.209252,95509.0,95508.0,0.00011936]
[1732796363529,0.209252,95509.0,95508.0,0.01043088]
[1732796364529,0.209252,95509.0,95508.0,0.06276388]
[1732796364732,0.15692,95509.0,95508.0,0.06276388]
[1732796365033,0.001,95518.0,95517.0,0.052328]
[1732796365231,0.15692,95519.0,95518.0,0.052327]
[1732796365424,0.15692,95519.0,95518.0,0.06263852]
[1732796365930,0.052327,95519.0,95518.0,0.01045039]
[1732796366137,0.209247,95519.0,95518.0,0.01045039]
[1732796366433,0.209247,95519.0,95508.0,0.00011936]
[1732796366434,0.15692,95519.0,95508.0,0.00011936]
[1732796366635,0.052327,95518.0,95517.0,0.052328]
[1732796366829,0.15692,95519.0,95518.0,0.052327]
[1732796367223,0.15692,95519.0,95518.0,0.06279297]
[1732796367437,0.413127,95520.0,95519.0,0.052327]
[1732796367633,0.570047,95520.0,95519.0,0.052327]
[1732796368138,0.51772,95520.0,95519.0,0.052327]
[1732796368327,0.51772,95520.0,95519.0,0.06280301]
[1732796368831,0.51772,95520.0,95519.0,0.06380301]
[1732796369231,0.51772,95520.0,95519.0,0.06280301]
[1732796370138,0.51772,95520.0,95519.0,0.052327]
[1732796370836,0.51772,95520.0,95515.0,0.052329]
[1732796371049,0.052328,95518.0,95516.0,0.06280967]
[1732796371339,0.15692,95519.0,95517.0,0.01048167]
[1732796371539,0.15692,95519.0,95508.0,0.00011936]
[1732796371737,0.15692,95519.0,95509.0,0.04032951]
[1732796371940,0.15692,95519.0,95510.0,0.04032951]
[1732796372136,0.15692,95519.0,95511.0,0.04032951]
[1732796372342,0.209247,95519.0,95518.0,0.052327]
[1732796372543,0.209247,95519.0,95518.0,0.01051387]
[1732796372932,0.210247,95519.0,95518.0,0.01051387]
[1732796373241,0.052332,95511.0,95508.0,0.05345236]
[1732796373440,0.052332,95511.0,95509.0,0.01369426]